bitfinex-derivatives/quotes_SOLF0:USTF0_20241015
["timestamp","ask_amount","ask_price","bid_price","bid_amount"]
[1729007713337,16.95630424,153.9,153.77,3.30667196]
[1729007713540,16.95630424,153.9,153.75,10.98]
[1729007713734,16.95630424,153.9,153.81,3.2513]
[1729007713944,1.07576659,153.89,153.78,3.30276683]
[1729007714139,1.07576659,153.89,153.75,10.98]
[1729007714343,3.2514,153.82,153.75,10.98]
[1729007714544,36.47630424,153.9,153.76,3.32684849]
[1729007714745,36.47630424,153.9,153.77,3.2522]
[1729007714941,3.2517,153.81,153.77,3.2522]
[1729007715140,1.07588001,153.89,153.73,4.117]
[1729007715341,19.52,153.88,153.7,10.96]
[1729007715539,40.1359048,153.88,153.7,3.25712358]
[1729007715737,3.2531,153.74,153.7,3.2537]
[1729007715940,10.96,153.79,153.7,3.23825491]
[1729007716247,10.96,153.85,153.66,10.96]
[1729007716948,1.07617486,153.84,153.69,6.5081]
[1729007717337,3.2518,153.8,153.76,3.2524]
[1729007717538,30.48,153.85,153.74,3.32739313]
[1729007717847,10.96,153.85,153.71,10.96]
[1729007718045,10.96,153.85,153.72,2.6976]
[1729007718550,3.2511,153.83,153.73,1.2912]
[1729007719545,10.96,153.85,153.73,1.2912]
[1729007720045,10.96,153.85,153.76,3.2525]
[1729007720243,10.96,153.85,153.73,1.2912]
[1729007720244,30.48,153.85,153.73,1.2912]
[1729007720838,3.2517,153.81,153.73,1.2912]
[1729007721045,10.96,153.85,153.79,3.2518]
[1729007721548,3.2512,153.83,153.79,3.2518]
[1729007721845,10.96,153.85,153.81,3.2515]
[1729007722053,3.251,153.84,153.79,3.29745915]
[1729007722452,10.96,153.85,153.79,3.29745915]
[1729007722645,3.2512,153.83,153.8,3.2517]
[1729007722852,10.96,153.85,153.79,3.29745915]
[1729007723155,10.96,153.85,153.73,1.2912]
[1729007723453,10.96,153.85,153.79,3.2518]
[1729007723957,10.96,153.85,153.73,1.2912]
[1729007724454,3.2513,153.83,153.73,1.2912]
[1729007725054,3.2513,153.83,153.79,3.2518]
[1729007725255,3.2518,153.8,153.73,1.2912]
[1729007725442,10.96,153.85,153.73,1.2912]
[1729007725755,30.48,153.85,153.73,1.2912]
[1729007726148,30.48,153.85,153.76,3.2525]
[1729007726456,3.2519,153.8,153.76,3.2525]
[1729007727056,3.2519,153.8,153.77,3.2523]
[1729007728854,30.48,153.85,153.73,1.2912]
[1729007729059,1.0760559,153.84,153.78,3.252]
[1729007729260,30.48,153.85,153.78,3.252]
[1729007729458,3.2518,153.8,153.77,3.2523]
[1729007729663,19.52,153.88,153.73,1.2912]
[1729007729857,1.07589952,153.87,153.73,1.2912]
[1729007730361,3.2513,153.83,153.8,3.2516]
[1729007731366,3.2513,153.83,153.73,1.2912]
[1729007731367,3.252,153.79,153.77,3.2523]
[1729007731563,30.48,153.88,153.73,1.2912]
[1729007731967,1.07590363,153.87,153.73,1.2912]
[1729007732471,3.2517,153.81,153.78,3.252]
[1729007732667,3.2517,153.81,153.73,1.2912]
[1729007733065,3.252,153.79,153.73,1.2912]
[1729007733369,30.48,153.88,153.73,1.2912]
[1729007733573,3.2516,153.81,153.78,3.252]
[1729007733869,3.2516,153.81,153.73,1.2912]
[1729007734470,3.2519,153.8,153.73,1.2912]
[1729007734667,30.48,153.88,153.73,1.2912]
[1729007734874,1.0760145,153.87,153.73,1.2912]
[1729007735265,3.2516,153.81,153.78,3.252]
[1729007736370,3.21646207,153.82,153.72,13.6576]
[1729007736573,1.3902,153.8,153.63,1.3233]
[1729007736874,1.3902,153.8,153.64,10.96]
[1729007736875,24.1136505,153.8,153.64,10.96]
[1729007737167,1.3902,153.8,153.64,10.96]
[1729007737673,1.3902,153.8,153.68,6.5085]
[1729007738167,3.2523,153.78,153.75,3.2527]
[1729007739074,1.3902,153.8,153.7,10.96]
[1729007739370,1.3902,153.8,153.66,10.96]
[1729007739571,19.52,153.76,153.63,4.0621]
[1729007739772,20.9102,153.8,153.64,10.96]
[1729007740169,1.3902,153.8,153.64,10.96]
[1729007740568,1.3902,153.8,153.79,3.2519]
[1729007741664,2.7471,153.89,153.77,3.24248409]
[1729007741874,2.7471,153.89,153.81,3.2514]
[1729007742075,3.2508,153.85,153.81,3.2514]
[1729007742276,2.7471,153.89,153.73,2.6591]
[1729007742460,2.7471,153.89,153.73,5.85864159]
[1729007742661,3.2513,153.83,153.73,2.6591]
[1729007742873,3.2513,153.83,153.79,3.2518]
[1729007743168,2.7471,153.89,153.73,2.6591]
[1729007743372,3.2514,153.82,153.73,5.84465275]
[1729007743674,3.2514,153.82,153.73,2.6591]
[1729007743862,3.2514,153.82,153.78,3.252]
[1729007744567,2.7471,153.89,153.77,3.27491558]
[1729007744769,2.7471,153.89,153.73,2.6591]
[1729007744975,3.2504,153.87,153.83,3.251]
[1729007745275,5.95305629,153.89,153.78,10.9]
[1729007745675,3.2507,153.85,153.79,3.22807531]
[1729007746578,3.2504,153.87,153.83,3.251]
[1729007746777,2.7471,153.89,153.78,14.11636524]
[1729007746985,6.03632788,153.89,153.78,14.11636524]
[1729007747284,2.7471,153.89,153.78,14.11636524]
[1729007747670,2.7471,153.89,153.83,3.251]
[1729007747872,2.7471,153.89,153.78,14.11636524]
[1729007748169,2.7471,153.89,153.8,3.2516]
[1729007748370,2.7471,153.89,153.78,14.11636524]
[1729007748983,2.7471,153.89,153.73,2.6591]
[1729007749283,19.52,153.88,153.73,2.6591]
[1729007749486,19.52,153.88,153.73,5.85565569]
[1729007749790,19.52,153.88,153.73,2.6591]
[1729007750085,3.2512,153.83,153.8,3.2517]
[1729007750280,19.52,153.88,153.73,5.95841373]
[1729007750579,1.3243,153.82,153.68,10.9]
[1729007750778,20.9066,153.81,153.63,13.6231]
[1729007751170,25.29392346,153.81,153.63,13.6231]
[1729007751376,3.2529,153.75,153.71,3.2535]
[1729007751573,25.29392346,153.81,153.7,3.22731199]
[1729007751772,25.29392346,153.81,153.63,13.6231]
[1729007751997,3.2525,153.77,153.73,3.2531]
[1729007752178,5.77392346,153.81,153.7,3.2077959]
[1729007752377,5.77392346,153.81,153.63,13.6231]
[1729007752378,1.3866,153.81,153.63,13.6231]
[1729007752678,3.252,153.79,153.75,3.2526]
[1729007753081,3.2519,153.8,153.75,3.2526]
[1729007753287,1.3866,153.81,153.73,3.28358341]
[1729007753587,1.3866,153.81,153.69,10.9]
[1729007753879,1.3866,153.81,153.78,3.252]
[1729007754186,1.3866,153.81,153.76,3.24843715]
[1729007754386,14.1511,153.84,153.8,3.2517]
[1729007754590,10.9,153.84,153.76,3.18499112]
[1729007754782,3.2511,153.83,153.8,3.2517]
[1729007755486,10.9,153.84,153.8,3.2517]
[1729007756283,10.9,153.84,153.79,3.2519]
[1729007756484,10.9,153.84,153.71,2.6763]
[1729007756684,10.9,153.84,153.71,5.98688173]
[1729007756877,30.42,153.84,153.71,2.6763]
[1729007757282,3.2523,153.78,153.71,5.89092653]
[1729007757481,3.2523,153.78,153.71,2.6763]
[1729007757886,3.2523,153.78,153.75,3.2528]
[1729007758289,1.3466,153.8,153.72,3.24325014]
[1729007758491,1.3466,153.8,153.67,10.9]
[1729007758787,1.3526,153.79,153.67,10.9]
[1729007760287,3.2532,153.73,153.67,10.9]
[1729007760490,19.52,153.77,153.6,52.88873662]
[1729007760681,19.52,153.77,153.62,84.54878757]
[1729007760876,10.9,153.78,153.63,6.5106]
[1729007761076,1.3526,153.79,153.62,84.54878757]
[1729007761077,1.07659318,153.76,153.62,84.54878757]
[1729007761278,4.5984,153.8,153.76,3.2524]
[1729007761482,1.3466,153.8,153.7,10.9]
[1729007761683,1.3466,153.8,153.71,1.4287]
[1729007761991,1.4295,153.83,153.71,1.4287]
[1729007762193,1.4295,153.83,153.72,2.7611]
[1729007762585,4.65588862,153.83,153.72,2.7611]
[1729007762788,3.2514,153.82,153.78,3.252]
[1729007762980,1.4295,153.83,153.72,2.7611]
[1729007763388,3.2517,153.81,153.77,3.2522]
[1729007763990,1.4295,153.83,153.72,2.7611]
[1729007765390,3.2516,153.81,153.72,2.7611]
[1729007765889,1.4295,153.83,153.72,2.7611]
[1729007767096,10.9,153.95,153.73,70.26]
[1729007767391,1.4162,153.91,153.73,70.26]
[1729007767594,1.07562823,153.9,153.75,6.5054]
[1729007767795,1.07562823,153.9,153.73,70.26]
[1729007767992,1.4162,153.91,153.73,70.26]
[1729007768190,1.3848,153.95,153.73,70.26]
[1729007768191,22.321,153.95,153.73,80.0194]
[1729007768406,23.39673006,153.95,153.73,80.0194]
[1729007768595,3.2495,153.91,153.87,3.2501]
[1729007768993,3.87673006,153.95,153.87,3.2501]
[1729007769302,19.52,153.94,153.84,10.9]
[1729007770190,1.07543019,153.93,153.81,3.17417445]
[1729007770392,1.07543019,153.93,153.65,9.7642]
[1729007770590,1.07543019,153.93,153.76,10.9]
[1729007771302,3.2501,153.88,153.81,3.2515]
[1729007771603,22.78528231,153.9,153.79,3.22463699]
[1729007771799,3.2502,153.88,153.84,3.2507]
[1729007771993,1.07532039,153.94,153.84,3.32186059]
[1729007772196,1.07538711,153.93,153.82,10.84]
[1729007772494,1.07538711,153.93,153.83,2.674]
[1729007772804,2.801,153.95,153.83,4.1028]
[1729007773096,3.2503,153.87,153.83,3.2509]
[1729007773301,10.84,153.94,153.83,3.28296275]
[1729007773494,3.2504,153.87,153.83,3.251]
[1729007773801,3.17991302,153.91,153.82,1.3397]
[1729007773999,1.3398,153.93,153.82,1.3397]
[1729007774207,3.25,153.89,153.85,3.2507]
[1729007774702,3.25,153.89,153.82,1.3397]
[1729007774910,3.2498,153.9,153.86,3.2503]
[1729007775296,2.801,153.95,153.82,13.5735]
[1729007775505,1.4162,153.95,153.83,1.322]
[1729007776009,1.4162,153.95,153.9,3.2495]
[1729007776010,3.2488,153.94,153.9,3.2495]
[1729007776205,1.4162,153.95,153.83,1.322]
[1729007777208,3.2495,153.91,153.88,3.25]
[1729007777905,3.2493,153.92,153.83,1.322]
[1729007778108,1.4162,153.95,153.83,1.322]
[1729007778499,3.249,153.94,153.9,3.2495]
[1729007778702,1.4162,153.95,153.83,1.322]
[1729007779197,1.07529426,153.94,153.83,1.322]
[1729007779396,11.91529426,153.94,153.82,2.7335]
[1729007779709,3.2498,153.89,153.86,3.2503]
[1729007779906,11.91529426,153.94,153.82,2.7335]
[1729007780112,1.07529426,153.93,153.82,2.7335]
[1729007780297,1.07529426,153.93,153.81,3.2836129]
[1729007780499,1.3205,153.92,153.8,10.84]
[1729007780703,2.3959142,153.92,153.8,14.12685794]
[1729007781006,1.4092,153.91,153.8,14.12685794]
[1729007781402,1.4092,153.91,153.77,2.6718]
[1729007781605,1.4092,153.91,153.77,13.5118]
[1729007781606,5.77153084,153.91,153.77,13.5118]
[1729007781810,7.61183084,153.91,153.81,3.2515]
[1729007782007,1.0754729,153.91,153.81,3.31644876]
[1729007782212,1.0754729,153.9,153.77,13.5118]
[1729007782414,3.2501,153.88,153.84,3.2508]
[1729007782909,1.0754142,153.92,153.82,3.30962011]
[1729007783203,12.2492,153.94,153.77,13.5118]
[1729007783411,12.2492,153.94,153.86,3.2505]
[1729007783607,3.25,153.89,153.83,3.17707528]
[1729007783801,3.25,153.89,153.77,13.5118]
[1729007784399,3.25,153.89,153.85,3.2506]
[1729007785102,1.4092,153.94,153.82,3.21901579]
[1729007785407,81.1,154.01,153.83,12.1808]
[1729007785604,5.84987036,154.0,153.84,10.84]
[1729007785807,3.69363308,154.0,153.84,10.84]
[1729007786011,3.69363308,154.0,153.85,2.7101]
[1729007786012,1.07513308,153.99,153.85,2.7101]
[1729007787404,3.249,153.94,153.9,3.2496]
[1729007787802,2.6185,154.0,153.85,2.7101]
[1729007787999,3.2493,153.92,153.88,3.25]
[1729007788203,2.6185,154.0,153.85,2.7101]
[1729007788603,1.07506036,153.99,153.85,2.7101]
[1729007789006,1.07505438,153.98,153.85,2.7101]
[1729007789208,1.07505438,153.99,153.9,3.2496]
[1729007789407,1.07505438,153.99,153.85,2.7101]
[1729007789608,3.2492,153.93,153.89,3.2497]
[1729007790118,3.25,153.89,153.86,3.2504]
[1729007790411,2.6815,153.92,153.81,3.3246817]
[1729007790613,2.6815,153.92,153.78,13.6213]
[1729007790614,1.4286,153.91,153.78,14.9493]
[1729007790806,1.4286,153.91,153.84,3.2509]
[1729007791007,10.84,153.9,153.78,4.1093]
[1729007791203,10.84,153.9,153.73,70.22]
[1729007791204,19.52,153.89,153.73,70.22]
[1729007791410,19.52,153.89,153.73,72.9]
[1729007791708,19.52,153.89,153.73,2.68]
[1729007792716,1.07599081,153.88,153.76,3.2525]
[1729007793217,3.2519,153.8,153.76,3.2525]
[1729007793619,10.84,153.84,153.73,2.68]
[1729007794816,3.2513,153.82,153.76,3.2525]
[1729007795009,10.84,153.84,153.73,2.68]
[1729007795319,14.04365384,153.84,153.73,2.68]
[1729007795519,4.0614,153.83,153.73,2.68]
[1729007795918,3.2512,153.83,153.79,3.2518]
[1729007796122,10.84,153.84,153.78,3.31838407]
[1729007796316,4.0614,153.9,153.78,10.84]
[1729007796516,4.0614,153.9,153.88,3.2499]
[1729007796818,1.3557,153.9,153.79,1.3609]
[1729007797015,1.3557,153.9,153.8,1.3304]
[1729007797723,1.3557,153.9,153.81,1.3633]
[1729007798117,3.2505,153.86,153.82,3.2513]
[1729007798320,1.3557,153.9,153.82,3.2513]
[1729007798321,1.3058,153.89,153.82,3.2513]
[1729007798525,1.3058,153.89,153.8,1.3304]
[1729007798714,10.84,153.88,153.8,3.2516]
[1729007798914,10.84,153.88,153.76,1.3633]
[1729007799113,30.36,153.88,153.76,1.3633]
[1729007799319,3.2515,153.82,153.78,3.2521]
[1729007799725,30.36,153.88,153.76,1.3633]
[1729007799726,3.2512,153.83,153.79,3.2518]
[1729007800025,30.36,153.88,153.79,3.2518]
[1729007800231,3.2517,153.81,153.77,3.2523]
[1729007800422,30.36,153.88,153.77,3.2523]
[1729007800722,1.07589552,153.87,153.77,3.2523]
[1729007800916,3.2517,153.81,153.71,4.0495]
[1729007801122,3.2517,153.81,153.77,3.2522]
[1729007802223,3.2517,153.81,153.78,3.252]
[1729007803318,30.3,153.82,153.71,1.305]
[1729007803518,2.7828,153.8,153.68,70.22]
[1729007803721,6.10759055,153.8,153.67,10.78]
[1729007803927,3.253,153.75,153.67,10.78]
[1729007804425,22.3028,153.8,153.64,2.6475]
[1729007804426,3.2535,153.72,153.64,13.4275]
[1729007804630,22.3028,153.8,153.64,13.4275]
[1729007804833,20.59637331,153.79,153.7,3.2537]
[1729007805031,3.253,153.75,153.64,13.4275]
[1729007805325,10.78,153.76,153.64,13.4275]
[1729007805532,10.78,153.76,153.68,3.2541]
[1729007805831,3.2536,153.72,153.64,13.4275]
[1729007806126,3.2536,153.72,153.69,3.254]
[1729007806621,3.2539,153.7,153.67,3.2544]
[1729007806925,30.3,153.76,153.64,13.4275]
[1729007808132,3.2536,153.72,153.64,13.4275]
[1729007808618,30.3,153.76,153.58,6.5125]
[1729007808820,30.3,153.76,153.58,3.32141395]
[1729007808821,1.3428,153.71,153.58,3.32141395]
[1729007809127,19.52,153.69,153.48,76.7769]
[1729007809320,1.07714721,153.68,153.49,4.1993]
[1729007809523,19.52,153.67,153.49,4.1993]
[1729007809722,1.07714721,153.66,153.49,2.8175]
[1729007809925,19.52,153.65,153.49,2.8175]
[1729007810125,19.52,153.63,153.49,2.8175]
[1729007810323,3.257,153.56,153.52,3.2576]
[1729007810523,30.32,153.58,153.49,2.8175]
[1729007810723,33.49754243,153.58,153.49,1.3916]
[1729007810924,3.2572,153.55,153.5,3.2581]
[1729007811226,33.49754243,153.58,153.5,3.2581]
[1729007811431,33.49754243,153.58,153.46,3.2589]
[1729007811627,33.49754243,153.58,153.44,1.4259]
[1729007812232,1.07808853,153.57,153.44,1.4259]
[1729007812432,3.2576,153.53,153.47,3.2587]
[1729007812725,13.97754243,153.58,153.44,1.4259]
[1729007812935,1.07813618,153.57,153.44,1.4259]
[1729007813132,1.07813618,153.57,153.49,3.2582]
[1729007813437,13.97754243,153.58,153.49,3.2582]
[1729007813632,3.2571,153.55,153.44,1.4259]
[1729007813934,33.49754243,153.58,153.44,1.4259]
[1729007814131,3.2578,153.52,153.46,3.2588]
[1729007814325,10.8,153.52,153.46,3.2588]
[1729007814521,10.8,153.52,153.4,1.3112]
[1729007814722,10.8,153.52,153.4,4.58707662]
[1729007814918,3.2585,153.49,153.4,1.3112]
[1729007815130,30.32,153.52,153.38,3.31172407]
[1729007815324,3.2592,153.45,153.39,3.2603]
[1729007815528,6.01321544,153.48,153.36,2.6519]
[1729007815718,6.01321544,153.48,153.36,5.96101615]
[1729007815926,3.2591,153.46,153.41,3.2599]
[1729007816220,10.8,153.46,153.38,3.22435897]
[1729007816420,10.8,153.46,153.36,2.6519]
[1729007816624,10.8,153.46,153.22,70.34]
[1729007816834,10.8,153.46,153.29,2.7302]
[1729007816835,14.12867551,153.46,153.29,2.7302]
[1729007817131,14.12867551,153.46,153.29,3.22207704]
[1729007817328,14.12867551,153.46,153.23,4.0783]
[1729007817635,3.2605,153.39,153.34,3.2614]
[1729007818131,10.8,153.4,153.23,4.0783]
[1729007818327,3.32062485,153.38,153.23,4.0783]
[1729007818535,6.58142485,153.38,153.33,3.2616]
[1729007818729,3.32062485,153.38,153.3,3.21623346]
[1729007818923,10.8,153.4,153.24,10.82]
[1729007819125,3.2608,153.38,153.32,3.2618]
[1729007819426,10.8,153.4,153.24,10.82]
[1729007819834,10.8,153.4,153.35,3.2611]
[1729007820032,10.8,153.4,153.32,3.24983444]
[1729007820332,3.2609,153.37,153.29,3.27364872]
[1729007820639,10.8,153.4,153.24,10.82]
[1729007820827,3.261,153.37,153.31,3.2619]
[1729007821026,2.7306,153.39,153.24,10.82]
[1729007821527,2.7306,153.39,153.32,3.2618]
[1729007821725,4.73404147,153.38,153.23,4.0783]
[1729007821927,3.2618,153.33,153.27,3.2628]
[1729007822126,10.82,153.34,153.27,3.2628]
[1729007822326,10.82,153.34,153.23,4.0783]
[1729007822534,14.0815,153.34,153.29,3.2625]
[1729007822831,10.82,153.35,153.23,4.0783]
[1729007823034,10.82,153.35,153.31,3.262]
[1729007823236,10.82,153.35,153.23,4.0783]
[1729007823833,10.82,153.35,153.29,3.2624]
[1729007824337,10.82,153.35,153.23,4.0783]
[1729007824533,3.2617,153.33,153.28,3.2627]
[1729007824734,10.82,153.35,153.28,3.2627]
[1729007824931,3.2617,153.33,153.28,3.2627]
[1729007825130,30.34,153.35,153.14,6.5313]
[1729007825339,30.34,153.35,153.15,3.90968481]
[1729007825538,3.2624,153.3,153.15,4.0019]
[1729007825842,10.82,153.29,153.15,14.8219]
[1729007826144,10.82,153.32,153.28,3.2626]
[1729007826447,10.82,153.32,153.16,6.5307]
[1729007826738,10.82,153.32,153.25,3.2632]
[1729007826739,1.3847,153.31,153.25,3.2632]
[1729007827033,14.082,153.32,153.23,3.22446205]
[1729007827240,10.82,153.32,153.2,3.2643]
[1729007827440,10.82,153.32,153.15,4.0019]
[1729007827843,3.2627,153.29,153.16,10.82]
[1729007828143,10.82,153.32,153.16,10.82]
[1729007828333,3.2628,153.28,153.24,3.2636]
[1729007828530,10.82,153.32,153.24,3.2636]
[1729007828933,3.2626,153.29,153.16,10.82]
[1729007829135,10.82,153.32,153.16,10.82]
[1729007829736,71.8247,153.37,153.17,6.5302]
[1729007829935,71.8247,153.37,153.16,10.82]
[1729007830132,4.70141703,153.38,153.16,10.82]
[1729007830133,1.4132,153.38,153.36,3.2611]
[1729007830328,107.81351016,153.41,153.28,10.78]
[1729007830541,107.81351016,153.41,153.29,14.9608]
[1729007830739,4.6396,153.42,153.38,3.2606]
[1729007831040,2.6807,153.45,153.29,18.27543146]
[1729007831248,3.2588,153.47,153.42,3.2598]
[1729007831434,30.3,153.48,153.29,18.27543146]
[1729007831745,33.49003838,153.48,153.29,18.27543146]
[1729007832243,10.78,153.48,153.3,6.5247]
[1729007832545,1.412,153.52,153.48,3.2585]
[1729007832737,76.4583,153.53,153.45,3.20015099]
[1729007832738,1.397,153.53,153.45,3.20015099]
[1729007832932,1.397,153.53,153.42,1.4071]
[1729007833141,1.397,153.6,153.42,7.39462264]
[1729007833340,30.3,153.59,153.42,7.39462264]
[1729007833542,10.78,153.59,153.42,7.39462264]
[1729007833745,3.2568,153.56,153.42,7.39462264]
[1729007834047,10.78,153.59,153.42,7.39462264]
[1729007834250,3.2568,153.57,153.47,3.2587]
[1729007834453,10.78,153.59,153.42,7.39462264]
[1729007834851,3.2564,153.58,153.52,3.2576]
[1729007835057,10.78,153.59,153.42,7.39462264]
[1729007835935,3.256,153.6,153.54,3.2571]
[1729007836136,3.20875539,153.65,153.54,3.24981807]
[1729007836347,10.76,153.65,153.48,10.78]
[1729007837152,14.05609506,153.65,153.48,10.78]
[1729007837743,10.76,153.65,153.48,10.78]
[1729007838751,10.76,153.65,153.59,3.2562]
[1729007838941,1.3017,153.68,153.54,10.76]
[1729007839141,1.3017,153.68,153.55,2.6816]
[1729007839441,1.3017,153.68,153.55,4.0828]
[1729007839646,3.2545,153.67,153.61,3.2556]
[1729007840054,10.76,153.69,153.55,4.0828]
[1729007840244,70.4,153.77,153.55,4.0828]
[1729007840245,71.7338,153.77,153.55,4.0828]
[1729007840444,10.76,153.74,153.55,4.0828]
[1729007840640,3.2541,153.69,153.55,4.0828]
[1729007840952,4.66719715,153.72,153.55,4.0828]
[1729007841155,4.66719715,153.72,153.6,3.2559]
[1729007841156,3.2545,153.67,153.6,3.2559]
[1729007841352,1.3486,153.72,153.55,4.0828]
[1729007842547,3.2539,153.7,153.6,3.256]
[1729007842748,3.2539,153.7,153.55,4.0828]
[1729007843248,1.3486,153.72,153.55,4.0828]
[1729007843249,3.2546,153.67,153.55,4.0828]
[1729007843461,4.65677872,153.72,153.56,10.76]
[1729007844256,24.17677872,153.72,153.56,10.76]
[1729007844455,24.17677872,153.72,153.55,2.7743]
[1729007844957,3.2559,153.61,153.55,2.7743]
[1729007845257,10.76,153.66,153.54,3.20205471]
[1729007845453,3.2557,153.62,153.56,3.2568]
[1729007845653,2.7237,153.65,153.54,3.33476754]
[1729007845855,2.7237,153.65,153.52,10.76]
[1729007846057,3.2558,153.61,153.54,3.2571]
[1729007846257,3.22697379,153.64,153.54,3.2571]
[1729007846462,2.7237,153.65,153.52,3.26279649]
[1729007846654,3.2555,153.62,153.57,3.2564]
[1729007847155,2.7237,153.65,153.57,3.2564]
[1729007847554,3.2554,153.63,153.57,3.2564]
[1729007847759,2.7237,153.65,153.57,3.2564]
[1729007848151,2.7237,153.65,153.55,3.31456324]
[1729007848352,10.76,153.66,153.51,10.76]
[1729007849055,10.76,153.66,153.51,13.98563196]
[1729007849451,32.99,153.71,153.51,13.98563196]
[1729007849760,3.2544,153.68,153.63,3.2552]
[1729007850066,2.71,153.71,153.63,3.31847231]
[1729007850252,3.2541,153.69,153.64,3.2549]
[1729007850450,3.2541,153.69,153.63,3.318162]
[1729007850656,2.71,153.71,153.59,4.0143]
[1729007850857,3.2549,153.66,153.61,3.2557]
[1729007851060,2.71,153.71,153.61,3.23643708]
[1729007851253,2.71,153.71,153.59,4.0143]
[1729007851450,3.2541,153.69,153.65,3.2548]
[1729007851650,2.71,153.71,153.59,7.20352547]
[1729007853256,3.2541,153.69,153.65,3.2547]
[1729007853457,1.3761,153.71,153.59,7.20352547]
[1729007853647,3.2538,153.71,153.62,3.2554]
[1729007853853,3.2538,153.71,153.59,7.20352547]
[1729007854557,3.2539,153.7,153.66,3.2545]
[1729007854855,1.3486,153.72,153.59,7.20352547]
[1729007855058,3.2543,153.68,153.64,3.255]
[1729007855658,24.18285483,153.72,153.59,7.20352547]
[1729007855861,3.2547,153.66,153.62,3.2554]
[1729007856356,3.2547,153.66,153.59,7.20352547]
[1729007856560,3.2547,153.66,153.63,3.2553]
[1729007856763,3.2546,153.67,153.63,3.2553]
[1729007856965,24.18285483,153.72,153.62,3.2554]
[1729007857161,24.18285483,153.72,153.59,7.20352547]
[1729007857361,3.2543,153.69,153.59,7.20352547]
[1729007857561,1.3486,153.72,153.59,7.20352547]
[1729007857970,1.3486,153.72,153.6,3.2559]
[1729007858162,1.3486,153.72,153.59,1.3624]
[1729007858358,19.52,153.71,153.59,1.3624]
[1729007858564,20.8686,153.72,153.61,3.2558]
[1729007858760,2.7255,153.7,153.61,3.2558]
[1729007858959,2.7255,153.7,153.59,1.3624]
[1729007859162,2.7255,153.7,153.45,6.5184]
[1729007859163,19.52,153.69,153.45,6.5184]
[1729007859369,19.52,153.67,153.48,5.27223779]
[1729007859669,19.52,153.67,153.48,4.0751]
[1729007859861,1.0776643,153.66,153.48,4.0751]
[1729007860059,3.2558,153.61,153.55,3.2569]
[1729007860265,10.72,153.62,153.53,3.20650436]
[1729007860460,10.72,153.62,153.48,4.0751]
[1729007860661,3.256,153.6,153.57,3.2565]
[1729007861067,10.72,153.62,153.54,3.29349244]
[1729007861264,1.0774829,153.68,153.48,4.0751]
[1729007861558,10.72,153.64,153.49,6.5164]
[1729007861765,13.9753,153.64,153.6,3.2558]
[1729007862375,10.72,153.64,153.6,3.2558]
[1729007862666,10.72,153.64,153.57,3.24429693]
[1729007862867,10.72,153.64,153.58,1.3739]
[1729007863074,13.9752,153.64,153.61,3.2556]
[1729007863671,1.0774829,153.68,153.58,4.64895919]
[1729007863865,1.0774829,153.68,153.67,3.2545]
[1729007865168,1.0774829,153.68,153.65,3.2547]
[1729007865367,1.0774829,153.68,153.6,10.72]
[1729007865672,3.254,153.7,153.63,3.2552]
[1729007865866,3.254,153.7,153.6,10.72]
[1729007866370,3.254,153.7,153.66,3.2546]
[1729007866768,3.2537,153.71,153.6,10.72]
[1729007867160,1.3486,153.72,153.6,10.72]